Cogmind - Beta 17 @@@ ROGUE MODE // 2026.07.11 @ 20:56:24 Player: kite Result: Destroyed by Lightning with EMDS Performance ------------- Evolutions (4) 2000 Regions Visited (16) 3200 Robots Destroyed (272) 1360 Value Destroyed (10687) 10687 Prototype IDs (45) 900 Alien Tech Used (0) 0 Bonus (6845) 6845 TOTAL SCORE: 24992 Bonus ------- High Alert Combat Kills 2551 Follower Combat Kills 1335 Entered Garrisons 400 Entered DSFs 500 Network Hubs Disabled 600 Aligned with FarCom 300 Met Zhirov 300 Built Enhanced Grunts 300 A7 Reached Mainframe 300 Met R17 at Cetus 500 Friendly Fire -241 Cogmind --------- Core Integrity 0/850 Matter 140/300 Energy 100/100 System Corruption 31% Temperature Cool (0) Movement Core (1500) Ox29 Location -6/Hub_04(d) Parts ------- > --- POWER (1) -------- (None) > --- PROPULSION (4) --- (None) > --- UTILITY (5) ------ Huge Storage Unit Modified TNC Improved Melee Analysis Suite > --- WEAPON (5) ------- Falx Phasing Sabre > --- INVENTORY (25) --- Centrium Heavy Treads Centrium Heavy Treads Centrium Heavy Treads Centrium Heavy Treads Centrium Heavy Treads High-capacity Storage Unit IFF Parser Microactuators Centrium Medium Armor Plating Centrium Medium Armor Plating Remote Datajack Shock Maul Shock Maul Power Sword Phasing Sabre Phasing Sabre Phasing Sabre Peak State ------------ > --- POWER ------------ Quantum Reactor > --- PROPULSION ------- Improved Heavy Treads Centrium Heavy Treads > --- UTILITY ---------- Huge Storage Unit Modified TNC Improved Melee Analysis Suite Centrium Medium Armor Plating Centrium Medium Armor Plating > --- WEAPON ----------- Advanced Variable Charge Gun Shock Maul Shock Maul Phasing Sabre Phasing Sabre > --- INVENTORY -------- Quantum Reactor Improved Heavy Treads Centrium Heavy Treads Centrium Heavy Treads Centrium Heavy Treads Centrium Heavy Treads Centrium Heavy Treads High-capacity Storage Unit Structural Scanner IFF Parser Microactuators Centrium Medium Armor Plating Centrium Medium Armor Plating Remote Datajack Shock Maul Shock Maul Power Sword Phasing Sabre Phasing Sabre [Rating: 119] Favorites ----------- Power Fission Core Engine Deuterium Engine Power Core Fission Core Reactor Quantum Reactor Propulsion Armored Treads Treads Armored Treads Leg Improved Carbon-fiber Leg Wheel Armored Huge Wheel Utility Huge Storage Unit Device Actuator Array Storage Huge Storage Unit Processor Modified TNC Hackware System Shield Protection Layered Light Armor Plating Weapon Phasing Sabre Energy Gun Medium Laser Ballistic Gun Shotgun Ballistic Cannon Advanced Assault Cannon Launcher Shock Bomb Launcher Impact Weapon Shock Maul Slashing Weapon Phasing Sabre Piercing Weapon Heavy Pick Special Melee Weapon Datajack Build | -11 -10 -10 -10 -9 -8 -8 -8 -7 -7 -7 -7 -6 -6 -6 -6 -6 ------- Run | Yrd Mat Min Exi Min Mat Gar Mat Fac Gar Fac DSF Fac Ext Cet Arc Hub Slots Evolved 8 | . . . . . 4 . . 2 . . . 2 . . . . Power . | . . . . . . . . . . . . . . . . . Propulsion 2 | . . . . . 2 . . . . . . . . . . . Utility 3 | . . . . . 1 . . . . . . 2 . . . . Weapon 3 | . . . . . 1 . . 2 . . . . . . . . Parts Attached 150 | 6 2 2 2 2 27 8 21 13 9 . 7 21 20 7 . 3 Power 19 | 1 . 1 . . 3 1 4 1 2 . 1 1 2 2 . . Engine 10 | 1 . 1 . . 2 . 2 1 1 . . 1 1 . . . Core 7 | . . . . . 1 1 2 . 1 . 1 . 1 . . . Reactor 2 | . . . . . . . . . . . . . . 2 . . Propulsion 34 | 2 . 1 . . 8 . 4 4 2 . 2 2 6 2 . 1 Treads 26 | 2 . 1 . . 4 . 4 4 2 . . . 6 2 . 1 Leg 4 | . . . . . 4 . . . . . . . . . . . Wheel 4 | . . . . . . . . . . . 2 2 . . . . Hover . | . . . . . . . . . . . . . . . . . Flight . | . . . . . . . . . . . . . . . . . Utility 43 | 1 1 . 1 1 6 2 8 4 4 . 2 8 3 2 . . Device 11 | . . . . . 3 . 4 1 . . . 2 1 . . . Storage 4 | 1 . . 1 . 1 . . 1 . . . . . . . . Processor 4 | . . . . . 1 . . . . . . 2 1 . . . Hackware 2 | . . . . . . . . . . . . 2 . . . . Protection 22 | . 1 . . 1 1 2 4 2 4 . 2 2 1 2 . . Artifact . | . . . . . . . . . . . . . . . . . Weapon 54 | 2 1 . 1 1 10 5 5 4 1 . 2 10 9 1 . 2 Energy Gun 5 | 2 1 . . 1 . . . . . . . . . 1 . . Energy Cannon . | . . . . . . . . . . . . . . . . . Ballistic Gun 10 | . . . . . 5 2 . . . . 2 1 . . . . Ballistic Cannon 3 | . . . . . 3 . . . . . . . . . . . Launcher 6 | . . . . . 1 1 2 . 1 . . . . . . 1 Special Weapon . | . . . . . . . . . . . . . . . . . Impact Weapon 5 | . . . . . 1 . . . . . . 4 . . . . Slashing Weapon 21 | . . . . . . 1 3 3 . . . 4 9 . . 1 Piercing Weapon 2 | . . . . . . 1 . . . . . 1 . . . . Special Melee Weapon 2 | . . . 1 . . . . 1 . . . . . . . . Unidentified Prototypes 8 | . . . . . 2 . . . . . . 2 . 3 . 1 Corrupted Parts 3 | . . . . . . . 1 . . . . . . 2 . . System Corruption 20 | . . . . . . . 10 . . . . . . 10 . . Parts Lost 43 | . . 5 . . . . 4 3 5 . 5 3 7 1 . 10 Power 8 | . . 1 . . . . 1 . 1 . . 1 2 . . 2 Propulsion 10 | . . 1 . . . . 1 2 1 . . 1 1 . . 3 Utility 9 | . . 1 . . . . 1 . . . 1 1 2 1 . 2 Weapon 16 | . . 2 . . . . 1 1 3 . 4 . 2 . . 3 Highest Loss Streak 10 | . . 3 . . . . 2 3 2 . 4 2 3 1 . 10 To Critical Strikes 3 | . . . . . . . 1 1 . . . . 1 . . . Average Backups 16 | 2 7 6 4 6 15 15 17 17 20 21 17 17 19 20 19 18 Power . | . 1 . . . . . . 1 . 1 1 . . 1 1 . Propulsion 4 | 1 2 1 1 1 2 3 4 1 4 6 6 6 5 5 6 5 Utility 6 | . 2 3 3 4 6 3 4 10 13 13 8 7 8 6 6 5 Weapon 4 | . 1 . . . 6 8 7 3 . . . 2 4 6 5 5 Tool/Special . | . . . . . . . . . . . . . . . . . Unused Backups 77 | . 2 . . . 12 8 10 4 4 . 4 5 10 7 . 11 Power 5 | . . . . . . . . 1 1 . . . 1 2 . . Propulsion 26 | . 2 . . . 4 3 3 . 2 . . . 3 4 . 5 Utility 25 | . . . . . 4 1 2 1 1 . 4 5 3 1 . 3 Weapon 19 | . . . . . 4 4 5 2 . . . . 2 . . 2 Tool/Special 2 | . . . . . . . . . . . . . 1 . . 1 Average Slot Usage (%) 89 | . 98 85 83 94 98 99 89 91 85 76 74 80 87 82 86 81 Engine 5 | . 14 11 14 14 2 4 4 7 4 7 6 2 3 1 . . Core 2 | . . . . . 6 4 4 . 2 . . 3 2 . . . Treads 22 | . 28 28 28 28 6 36 35 29 23 15 6 . 16 13 13 12 Leg 2 | . . . . . 28 . . . . . . . . . . . Wheel 1 | . . . . . . . . . . . 7 12 . . . . Device 5 | . . . . . 9 9 10 8 6 7 . 3 4 . . 2 Storage 8 | . 14 14 14 14 9 9 9 7 7 7 7 6 6 6 6 6 Processor 3 | . . . . . 2 . . . . . . 5 12 13 13 13 Protection 7 | . 12 10 . 8 6 9 7 5 6 7 13 4 5 10 13 8 Energy Gun 3 | . 28 19 14 18 3 . . . . . . . . . . . Ballistic Gun 3 | . . . . . 16 10 . . . . 1 3 . . . . Impact Weapon 5 | . . . . . . 5 . 1 6 7 7 14 13 5 13 11 Slashing Weapon 11 | . . . . . . 4 15 28 15 15 12 5 17 26 20 17 Piercing Weapon 2 | . . . . . . 4 1 . 6 7 6 5 2 . . . Peak Build Rating 119 | 6 7 7 8 8 39 45 45 52 69 65 65 72 92 119 115 116 Average Rating 51 | 4 6 6 6 7 35 40 40 47 54 65 59 66 83 102 115 106 On Entrance 44 | . 6 7 5 7 8 34 45 35 52 65 65 44 71 78 115 115 Avg Prop Armor Cover (%) 11 | . . . . . 12 . . . . . 11 . . . . 10 Naked Turns . | . . . . . . . . . . . . . . . . . Heaviest Build 136 | 12 15 15 18 21 64 71 71 92 136 111 129 124 127 133 131 135 Greatest Support 155 | 40 40 40 40 40 80 80 82 85 150 150 150 56 150 155 155 155 Greatest Overweight (x) 4 | . . . . . 2 . 1 1 1 . 4 2 1 1 . 1 Average Overweight (x) . | . . . . . . . . . . . 3 1 . . . . Largest Inventory Capacity 25 | 8 8 8 10 10 20 20 20 25 25 25 25 25 25 25 25 25 Average Capacity 20 | 7 8 8 8 10 16 20 20 20 24 25 25 25 25 25 25 25 Most Carried 25 | 4 8 8 6 7 20 20 20 20 25 25 25 25 25 25 25 25 Average Carried 19 | 2 7 6 4 6 15 19 19 19 22 25 24 24 24 24 25 24 Final Capacity 25 | 8 8 8 10 10 20 20 20 20 25 25 25 25 25 25 25 25 Final Carried 25 | 4 8 5 6 7 20 20 20 20 25 25 25 25 25 25 25 22 Class Distribution -------------------- 30% | Mutant 27% | Gladiator 11% | Scavenger-Gladiator 9% | Tank 9% | Commander-Gladiator 4% | Skirmisher Dominant Class ---------------- Mutant | -10/Materials Mutant | -10/Mines Mutant | -10/Exiles Mutant | -9/Mines Skirmisher | -8/Materials Mutant | -8/Garrison Gladiator | -8/Materials Gladiator | -7/Factory Gladiator | -7/Garrison Gladiator | -7/Factory Mutant | -7/DSF Hacker-Mutant | -6/Factory Scavenger-Gladiator | -6/Extension Scavenger-Gladiator | -6/Cetus Commander-Gladiator | -6/Archives Commander-Gladiator | -6/Hub_04(d) Resources | -11 -10 -10 -10 -9 -8 -8 -8 -7 -7 -7 -7 -6 -6 -6 -6 -6 ----------- Run | Yrd Mat Min Exi Min Mat Gar Mat Fac Gar Fac DSF Fac Ext Cet Arc Hub Matter Collected 4497 | 180 100 15 73 99 1107 687 726 188 400 . 136 255 290 161 . 80 Remotely . | . . . . . . . . . . . . . . . . . Salvage Created 11901 | 169 549 72 . 127 1053 1327 2888 500 1886 . 375 758 1254 145 . 798 Parts 542 | 8 33 5 . 9 56 61 139 35 68 . 17 38 38 2 . 33 Haulers Intercepted 5 | . 1 . . . 1 . 2 . . . . 1 . . . . Recyclers Shooed 3 | . . . . 1 1 . . . . . . 1 . . . . Parts Field Recycled . | . . . . . . . . . . . . . . . . . Retrieved Matter . | . . . . . . . . . . . . . . . . . Parts Self-Destructed . | . . . . . . . . . . . . . . . . . Prevented . | . . . . . . . . . . . . . . . . . Parts Restored . | . . . . . . . . . . . . . . . . . Kills | -11 -10 -10 -10 -9 -8 -8 -8 -7 -7 -7 -7 -6 -6 -6 -6 -6 ------- Run | Yrd Mat Min Exi Min Mat Gar Mat Fac Gar Fac DSF Fac Ext Cet Arc Hub Combat Hostiles Destroyed 198 | . 6 2 . 3 26 31 52 7 28 . 9 9 21 2 . 2 Melee 85 | . . . . . . 6 31 7 9 . 7 8 14 2 . 1 Guns 46 | . 5 2 . 3 24 12 . . . . . . . . . . Cannons 2 | . . . . . 2 . . . . . . . . . . . AOE 51 | . 1 . . . . 13 21 . 15 . . . . . . 1 Classes Destroyed 17 | 3 3 1 . . 4 2 3 1 . . . . . . . . Worker 28 | 2 4 1 . . 5 . 4 4 . . . 3 . . . 5 Builder 15 | . 2 . . . 3 . 3 1 . . . 2 2 . . 2 Tunneler 4 | 2 . 1 . . . . . 1 . . . . . . . . Hauler 5 | . 1 . . . 1 . 2 . . . . 1 . . . . Recycler 11 | 1 1 . . . 3 . 4 1 . . . 1 . . . . Mechanic 1 | . . . . . . . 1 . . . . . . . . . Watcher 4 | . . . . . . 1 1 . . . . 1 1 . . . Swarmer 48 | . . . . . 13 8 6 1 15 . 4 1 . . . . Grunt 84 | . 6 . . 3 7 16 26 3 9 . . 2 12 . . . Brawler 6 | . . . . . 1 . 5 . . . . . . . . . Duelist 2 | . . . . . . . 1 1 . . . . . . . . Protector 6 | . . . . . . . 5 . . . . . . . . 1 Sentry 26 | . . . . . 4 3 8 . 3 . . 1 7 . . . Specialist 6 | . . . . . . 1 . . . . 5 . . . . . Hunter 7 | . . . . . 1 3 1 . 1 . . . . . . 1 Programmer 8 | . . . . . . . . 2 . . . 5 1 . . . Cetus Guard 2 | . . . . . . . . . . . . . . 2 . . Enhanced Grunt 5 | . . . . . . . . . . . . . . . . 5 Assembled 2 | . . 2 . . . . . . . . . . . . . . Thug 2 | . . . . . . . . . . . . . 1 . . 1 Savage 2 | . . . . . . 1 . . . . . . . . . 1 Best Kill Streak 12 | 5 3 1 . 2 8 9 12 3 6 . 3 3 5 1 . 4 Combat Bots Only 10 | . 3 1 . 2 4 9 10 3 6 . 3 2 5 1 . 1 Max Kills in Single Turn 5 | 1 2 1 . 1 2 3 5 1 3 . 1 1 2 1 . 5 Gunslinging 1 | . . . . . 1 1 . . . . . . . . . . Exploded 5 | . 1 . . . . 3 5 . 3 . . . . . . 1 Melee 2 | . . . . . . 1 1 1 1 . 1 1 2 1 . 1 Uniques/NPCs Destroyed . | . . . . . . . . . . . . . . . . . Combat | -11 -10 -10 -10 -9 -8 -8 -8 -7 -7 -7 -7 -6 -6 -6 -6 -6 -------- Run | Yrd Mat Min Exi Min Mat Gar Mat Fac Gar Fac DSF Fac Ext Cet Arc Hub Hostile Shots Fired 1374 | . 16 50 . 16 79 136 185 57 249 . 106 71 175 44 . 190 Missed 396 | . 7 15 . 5 21 37 53 10 77 . 31 16 52 18 . 54 Hits 978 | . 9 35 . 11 58 99 132 47 172 . 75 55 123 26 . 136 Melee 28 | . . 7 . . . . 16 5 . . . . . . . . Projectile 950 | . 9 28 . 11 58 99 116 42 172 . 75 55 123 26 . 136 AOE 2 | . . . . . . . . . . . . 2 . . . . Critical Strikes 48 | . 1 1 . . 4 3 7 3 3 . 2 2 7 2 . 13 Part Disruptions 2 | . . . . . . . . . . . . . . . . 2 Damage Taken 15679 | . 124 625 . 122 550 982 2284 810 1980 . 1076 1042 1632 667 . 3785 Core 1841 | . 40 150 . 10 58 63 256 145 183 . 53 341 117 68 . 357 Absorbed by Shields 683 | . . . . . 121 384 109 . . . 4 . 9 56 . . Reduced by Siege Mode 54 | . . . . . . . . . . . . . 54 . . . Ignored by Resistances 640 | . . . . . . . . . 205 . 435 . . . . . Regen/Repaired (Parts) 432 | . . . . . . . 375 . . . . . 57 . . . Core Remaining (%) 49 | 100 . . . 20 . . 31 . . . 45 . . . . . Volleys Fired 296 | 9 28 36 . 19 64 61 23 . 44 . 4 . . 1 . 7 Largest 3 | 2 2 2 . 2 3 3 1 . 1 . 1 . . 1 . 1 Hottest 240 | 90 90 90 . 90 120 71 36 . 36 . 25 . . 240 . 45 Shots Fired 529 | 18 56 48 . 21 183 123 22 . 45 . 4 . . 2 . 7 Gun 384 | 18 56 48 . 21 136 99 . . . . 4 . . 2 . . Cannon 47 | . . . . . 47 . . . . . . . . . . . Launcher 98 | . . . . . . 24 22 . 45 . . . . . . 7 Special . | . . . . . . . . . . . . . . . . . Kinetic 261 | . . . . . 158 99 . . . . 4 . . . . . Thermal 102 | 9 20 25 . 21 25 . . . . . . . . 2 . . Explosive 14 | . . . . . . . 7 . . . . . . . . 7 Electromagnetic 152 | 9 36 23 . . . 24 15 . 45 . . . . . . . Robot Hit Streak 12 | 6 12 3 . 9 8 12 3 . 6 . 3 . . 4 . 6 Robot Miss Streak 10 | 2 3 8 . 2 10 6 3 . 3 . 5 . . . . 2 Penetration Max . | . . . . . . . . . . . . . . . . . Secondary Targets 4 | . . . . . 1 3 . . . . . . . . . . Max Gunslinging Chain 1 | . . . . . 1 1 . . . . . . . . . . Shots Hit Robots 622 | 12 38 16 4 17 111 93 92 21 63 . 24 48 62 18 . 3 Core Hits 405 | 6 21 7 . 6 59 67 82 12 55 . 8 14 17 7 . 44 Critical Kills 8 | . . . . . 2 1 . . . . . 1 4 . . . Critical Parts Destroyed 8 | . . . . . . . . . 1 . . 1 6 . . . Critical Strikes 59 | 1 2 . . . 4 8 9 2 7 . . 8 14 4 . . Burn 3 | 1 2 . . . . . . . . . . . . . . . Destroy 2 | . . . . . 1 1 . . . . . . . . . . Blast 2 | . . . . . 2 . . . . . . . . . . . Smash 14 | . . . . . 1 . . . 1 . . 2 10 . . . Sever 36 | . . . . . . 6 9 2 5 . . 6 4 4 . . Impale 2 | . . . . . . 1 . . 1 . . . . . . . Melee Attacks 592 | . . . 4 1 5 57 122 44 115 . 30 103 82 18 . 11 Impact 140 | . . . . . 5 17 . 3 29 . 5 35 40 . . 6 Slashing 394 | . . . . . . 36 118 40 66 . 22 54 35 18 . 5 Piercing 51 | . . . . . . 4 4 . 20 . 3 13 7 . . . Sneak Attacks 50 | . . . 4 . 4 . 13 10 3 . 2 10 4 . . . Combat Hostiles 5 | . . . . . . . 1 . 3 . . . 1 . . . Follow-up Attacks 100 | . . . . . . 6 12 6 19 . 9 15 24 9 . . Damage Inflicted 27240 | 155 556 207 . 173 2155 2961 6775 1335 4236 . 935 2186 3199 585 . 1782 Guns 3366 | 155 485 207 . 173 1334 906 . . . . 70 . . 36 . . Cannons 474 | . . . . . 474 . . . . . . . . . . . Explosions 6652 | . 71 . . . . 1170 2301 . 1400 . . . . . . 1710 Melee 16739 | . . . . . 346 885 4466 1335 2836 . 865 2186 3199 549 . 72 Ramming 9 | . . . . . 1 . 8 . . . . . . . . . Kinetic 2616 | . . . . . 1640 906 . . . . 70 . . . . . Thermal 1555 | 62 223 112 . 173 168 330 188 . 263 . . . . 36 . . Explosive 1446 | . . . . . . . 887 . . . . . . . . 559 Electromagnetic 4875 | 93 333 95 . . . 840 1226 . 1137 . . . . . . 1151 Impact 3568 | . . . . . 346 96 . 112 500 . 195 720 1527 . . 72 Slashing 12193 | . . . . . . 721 4402 1223 1919 . 645 1282 1452 549 . . Piercing 978 | . . . . . . 68 64 . 417 . 25 184 220 . . . Highest Corruption 30 | . . 5 5 5 . . 15 2 2 2 2 4 . 10 10 30 Average Corruption 6 | . . 4 5 5 . . 14 2 2 2 2 2 . 7 10 12 Corruption Purged 4 | . . . . . . . . . . . . 4 . . . . Corruption Blocked . | . . . . . . . . . . . . . . . . . Effects 198 | . . 4 15 9 . . 89 8 24 . 7 7 . 20 3 12 Message Errors 54 | . . 2 3 . . . 22 2 7 . 3 5 . 6 1 3 Matter Fused 46 | . . 1 5 1 . . 27 2 2 . . . . 6 1 1 Heat Flow Errors 28 | . . . 1 2 . . 15 1 4 . 1 . . 1 . 3 Energy Discharges 30 | . . 1 2 1 . . 11 2 4 . 2 2 . 2 1 2 Parts Rejected 1 | . . . . . . . 1 . . . . . . . . . Parts Fused 2 | . . . 1 . . . . . . . 1 . . . . . Data Loss (minor) 21 | . . . 2 2 . . 6 1 6 . . . . 2 . 2 Data Loss (major) 6 | . . . . . . . 4 . . . . . . 2 . . Misfires 3 | . . . . 2 . . . . 1 . . . . . . . Alerts 4 | . . . 1 . . . 1 . . . . . . 1 . 1 Misdirections 1 | . . . . . . . 1 . . . . . . . . . Weapon Failures 2 | . . . . 1 . . 1 . . . . . . . . . Overload Shots 1 | . . . . . . . . . . . . . . 1 . . Effects 1 | . . . . . . . . . . . . . . 1 . . Energy Bleed 1 | . . . . . . . . . . . . . . 1 . . Overflow Damage 2854 | . . . . . 205 59 671 261 334 . 72 433 766 . . 53 Projectiles 15 | . . . . . 15 . . . . . . . . . . . Explosions 99 | . . . . . . 25 2 . 19 . . . . . . 53 Melee 2740 | . . . . . 190 34 669 261 315 . 72 433 766 . . . Knockbacks 13 | . . . . . 4 . . 1 2 . . 2 4 . . . Impact 11 | . . . . . 2 . . 1 2 . . 2 4 . . . Kinetic 1 | . . . . . 1 . . . . . . . . . . . Secondary 1 | . . . . . 1 . . . . . . . . . . . Self-Inflicted Damage 590 | . . . . . . 18 109 . 85 . . . . . . 378 Shots 21 | . . . . . . 1 7 . 4 . . . . . . 9 Rammed 2 | . . . . . 1 . 1 . . . . . . . . . Targets Rammed 2 | . . . . . 1 . 1 . . . . . . . . . Kicked . | . . . . . . . . . . . . . . . . . Crushed . | . . . . . . . . . . . . . . . . . Highest Temperature 357 | 180 207 229 156 231 357 86 263 279 212 . 327 7 7 194 . 207 Average Temperature 71 | 77 73 97 81 74 70 22 69 132 47 . 126 7 4 86 . 84 Received Heat Transfer 3306 | . 84 20 . 66 210 387 843 207 330 . . 105 600 151 . 303 Siege Activations 3 | . . . . . . . . . . . . . 3 . . . Total Turns 66 | . . . . . . . . . . . . . 66 . . . Longest Duration 33 | . . . . . . . . . . . . . 33 . . . Martial Activations . | . . . . . . . . . . . . . . . . . Shielding Activations . | . . . . . . . . . . . . . . . . . Robots Disrupted 1 | . . . . . . . . . 1 . . . . . . . Combat Hostiles 1 | . . . . . . . . . 1 . . . . . . . Robots Corrupted 23 | . . . . . 3 . . 1 4 . 1 2 8 . . 4 Combat Hostiles 13 | . . . . . . . . . 4 . 1 1 7 . . . Parts Fried 33 | . . . . . 3 3 2 . 7 . 1 3 4 . . 10 Impact Corruptions 52 | . . . . . 8 1 . 4 7 . 2 9 21 . . . Robots Melted . | . . . . . . . . . . . . . . . . . Combat Hostiles . | . . . . . . . . . . . . . . . . . Parts Melted 6 | 2 2 . . . . . . . . . . . . 2 . . Heat Transferred 3083 | 259 692 333 . 506 375 150 400 . 350 . . . . 18 . . Parts Sabotaged . | . . . . . . . . . . . . . . . . . Parts Stolen . | . . . . . . . . . . . . . . . . . Parts Stripped . | . . . . . . . . . . . . . . . . . Power Chain Reactions 18 | . 1 . . . . 4 5 . 8 . . . . . . . Alert | -11 -10 -10 -10 -9 -8 -8 -8 -7 -7 -7 -7 -6 -6 -6 -6 -6 ------- Run | Yrd Mat Min Exi Min Mat Gar Mat Fac Gar Fac DSF Fac Ext Cet Arc Hub Maximum Alert Level 5 | . . . . . 2 5 5 3 5 3 3 2 1 1 . 3 Low Security (%) 39 | 100 100 100 . 100 54 . . . . . . 65 87 89 100 64 Level 1 9 | . . . . . 43 1 . . 4 . . 25 12 10 . . Level 2 13 | . . . . . 1 8 19 89 11 . 43 8 . . . 6 Level 3 14 | . . . . . . 43 13 10 28 100 56 . . . . 29 Level 4 17 | . . . . . . 40 48 . 43 . . . . . . . Level 5 4 | . . . . . . 6 18 . 11 . . . . . . . High Security . | . . . . . . . . . . . . . . . . . Max Security . | . . . . . . . . . . . . . . . . . Sterilizations 2 | . . . . . . . 1 . . . 1 . . . . . Peak Influence 1777 | 15 66 15 . 65 434 1753 1647 735 1777 932 863 450 248 234 81 1040 Initial 932 | . . . . . 1 282 854 735 308 932 652 450 22 129 81 17 Average 574 | 1 14 . . 21 152 1107 1166 553 1090 932 759 143 126 76 68 381 Influence Increases 9458 | 25 213 25 . 85 849 1491 1632 199 1519 . 256 376 1093 476 . 1219 Destroy 0b10 Robot/C 4360 | . 120 . . 60 520 620 940 140 560 . 180 180 700 260 . 80 Destroy 0b10 Robot/NC 435 | 25 40 10 . . 60 5 100 35 30 . . 40 25 10 . 55 Destroy Leader 672 | . 32 . . 10 112 20 206 20 40 . 30 74 72 20 . 36 Allied During Kill 498 | . . . . . . 4 . . . . . . 168 164 . 162 Successful Hack 121 | . 17 . . . 3 21 11 . 14 . . 14 27 . . 14 Select Force Hacks 50 | . . . . . . . . . . . . . . . . 50 Disable Machine 480 | . . 15 . . . 45 75 . 105 . 15 . . 15 . 210 Anti-Garrison Action 1300 | . . . . . . 650 . . 500 . . . . . . 150 Destroy Structure 672 | . 4 . . . 34 66 75 4 105 . 1 23 11 7 . 342 Lose Combat Pursuer 870 | . . . . 15 120 60 225 . 165 . 30 45 90 . . 120 Influence Decreases 8528 | 25 213 25 . 80 420 172 1769 1375 182 845 330 1187 908 504 153 340 Entered New Map 3886 | . . . . . 4 152 899 881 132 845 280 408 25 103 123 34 Time Decay 3494 | 25 213 15 . 80 416 . 680 464 . . . 482 572 311 30 206 Lost Part 390 | . . 10 . . . . 40 30 50 . 50 30 70 10 . 100 Lost Ally 341 | . . . . . . 20 . . . . . . 241 80 . . Purge Threat 417 | . . . . . . . 150 . . . . 267 . . . . Squads Dispatched 42 | . 2 . . 1 4 . 11 2 . . 3 7 6 1 . 5 Investigation 12 | . 1 . . 1 . . 3 . . . . 1 4 1 . 1 Extermination 6 | . . . . . . . . 2 . . . 4 . . . . Reinforcement 14 | . 1 . . . 4 . 2 . . . 3 2 2 . . . Assault 9 | . . . . . . . 6 . . . . . . . . 3 Garrison 1 | . . . . . . . . . . . . . . . . 1 Intercept . | . . . . . . . . . . . . . . . . . Searches Triggered . | . . . . . . . . . . . . . . . . . Construction Impeded 2 | . . . . . 1 . . . . . . . 1 . . . Haulers Reinforced . | . . . . . . . . . . . . . . . . . Active Scanning Responses . | . . . . . . . . . . . . . . . . . Cargo Convoy Interrupts . | . . . . . . . . . . . . . . . . . Stealth | -11 -10 -10 -10 -9 -8 -8 -8 -7 -7 -7 -7 -6 -6 -6 -6 -6 --------- Run | Yrd Mat Min Exi Min Mat Gar Mat Fac Gar Fac DSF Fac Ext Cet Arc Hub Distress Signals 18 | . . . . . 3 . 6 . . . . 4 3 2 . . Communications Jammed . | . . . . . . . . . . . . . . . . . Distress Signals . | . . . . . . . . . . . . . . . . . Times Spotted 339 | . 10 8 . 4 39 34 76 8 39 . 14 20 44 20 . 23 Peak Tracking Total 17 | . 3 3 . 3 4 4 10 3 7 . 6 5 5 5 . 17 Tactical Retreats 42 | . . 3 . 1 6 3 9 . 8 . 2 3 3 . . 4 Traps | -11 -10 -10 -10 -9 -8 -8 -8 -7 -7 -7 -7 -6 -6 -6 -6 -6 ------- Run | Yrd Mat Min Exi Min Mat Gar Mat Fac Gar Fac DSF Fac Ext Cet Arc Hub Traps Triggered 33 | . 1 . . . . 6 3 2 12 . 2 . 7 . . . Indirectly 14 | . . . . . . 5 . . 9 . . . . . . . Trap Hack Attempts . | . . . . . . . . . . . . . . . . . Triggered . | . . . . . . . . . . . . . . . . . Disarmed . | . . . . . . . . . . . . . . . . . Reprogrammed . | . . . . . . . . . . . . . . . . . Reused . | . . . . . . . . . . . . . . . . . Traps Extracted . | . . . . . . . . . . . . . . . . . Installed . | . . . . . . . . . . . . . . . . . Triggered . | . . . . . . . . . . . . . . . . . Machines | -11 -10 -10 -10 -9 -8 -8 -8 -7 -7 -7 -7 -6 -6 -6 -6 -6 ---------- Run | Yrd Mat Min Exi Min Mat Gar Mat Fac Gar Fac DSF Fac Ext Cet Arc Hub Machines Disabled 43 | . . 1 . . . 8 5 . 11 . 1 . . 2 . 15 Max in Single Turn 8 | . . 1 . . . 2 2 . 2 . 1 . . 1 . 8 Garrison Access 2 | . . . . . . . 1 . . . . . . . . 1 Garrison Relay 9 | . . . . . . 5 . . 4 . . . . . . . Network Hub 3 | . . . . . . . . . . . . . . . . 3 Machines Repaired . | . . . . . . . . . . . . . . . . . Machines Dismantled . | . . . . . . . . . . . . . . . . . Machines Sabotaged 1 | . . . . . . . . . . . . . . . . 1 Overloaded Fab Kills . | . . . . . . . . . . . . . . . . . Hacking | -11 -10 -10 -10 -9 -8 -8 -8 -7 -7 -7 -7 -6 -6 -6 -6 -6 --------- Run | Yrd Mat Min Exi Min Mat Gar Mat Fac Gar Fac DSF Fac Ext Cet Arc Hub Machines Accessed 53 | . 4 . 2 1 5 5 8 4 1 1 . 8 11 1 . 2 Terminals 38 | . 4 . . 1 3 5 6 . 1 1 . 5 10 1 . 1 Fabricators 3 | . . . . . . . . 2 . . . 1 . . . . Repair Stations 3 | . . . . . . . 2 . . . . . 1 . . . Recycling Units 1 | . . . . . . . . . . . . 1 . . . . Scanalyzers 2 | . . . . . 1 . . 1 . . . . . . . . Garrison Access 4 | . . . . . 1 . . 1 . . . 1 . . . 1 Total Hacks 115 | . 8 . 5 2 10 9 18 5 1 1 . 23 28 2 . 3 Successful 46 | . 2 . 5 . 5 2 6 4 1 1 . 10 8 . . 2 Failed 69 | . 6 . . 2 5 7 12 1 . . . 13 20 2 . 1 Catastrophic 17 | . 2 . . 2 . 3 3 . . . . 1 5 1 . . Database Lockouts . | . . . . . . . . . . . . . . . . . Manual 62 | . 8 . 1 2 5 . 20 1 . . . 3 19 1 . 2 Terminals 90 | . 8 . . 2 7 9 16 . 1 1 . 17 25 2 . 2 Fabricators 3 | . . . . . . . . 2 . . . 1 . . . . Repair Stations 5 | . . . . . . . 2 . . . . . 3 . . . Recycling Units 2 | . . . . . . . . . . . . 2 . . . . Scanalyzers 4 | . . . . . 2 . . 2 . . . . . . . . Garrison Access 6 | . . . . . 1 . . 1 . . . 3 . . . 1 Terminal Hacks 23 | . . . 5 . . 2 3 . 1 1 . 7 4 . . . Record 4 | . . . 4 . . . . . . . . . . . . . Open Door 5 | . . . . . . 1 . . . . . 1 3 . . . Open DSF 2 | . . . . . . . . . . 1 . 1 . . . . Unreport Threat 4 | . . . . . . . 1 . . . . 3 . . . . Recall Investigation 1 | . . . . . . . . . . . . . 1 . . . Zone Layout 4 | . . . . . . . 2 . . . . 2 . . . . Garrison Registry 1 | . . . . . . . . . 1 . . . . . . . Patrol Navigation 1 | . . . . . . 1 . . . . . . . . . . Proto ID Catalog 1 | . . . 1 . . . . . . . . . . . . . Fabricator Hacks 2 | . . . . . . . . 1 . . . 1 . . . . Network Status 2 | . . . . . . . . 1 . . . 1 . . . . Repair Station Hacks . | . . . . . . . . . . . . . . . . . Recycling Unit Hacks 1 | . . . . . . . . . . . . 1 . . . . Retrieve Components 1 | . . . . . . . . . . . . 1 . . . . Scanalyzer 3 | . . . . . 2 . . 1 . . . . . . . . Insert Component 2 | . . . . . 1 . . 1 . . . . . . . . Analyze 1 | . . . . . 1 . . . . . . . . . . . Garrison Access Hacks 3 | . . . . . 1 . . 1 . . . . . . . 1 Unlock Access 3 | . . . . . 1 . . 1 . . . . . . . 1 Unauthorized Hacks 14 | . 2 . . . 2 . 3 1 . . . 1 4 . . 1 Terminals 10 | . 2 . . . 2 . 1 . . . . 1 3 . . 1 Botnet 9 | . 2 . . . 2 . 1 . . . . 1 3 . . . Sabotage 1 | . . . . . . . . . . . . . . . . 1 Fabricators 1 | . . . . . . . . 1 . . . . . . . . Haulers 1 | . . . . . . . . 1 . . . . . . . . Repair Stations 3 | . . . . . . . 2 . . . . . 1 . . . Patch 3 | . . . . . . . 2 . . . . . 1 . . . Recycling Units . | . . . . . . . . . . . . . . . . . Scanalyzers . | . . . . . . . . . . . . . . . . . Garrison Access . | . . . . . . . . . . . . . . . . . Data Cores Recovered . | . . . . . . . . . . . . . . . . . Used . | . . . . . . . . . . . . . . . . . Hacking Detections 34 | . 3 . . 1 3 4 6 2 . . . 4 10 1 . . Full Trace Events 8 | . . . . 1 . 2 . . . . . 1 3 1 . . Feedback Events 1 | . . . . . . . . . . . . 1 . . . . Corruption 1 | . . . . . . . . . . . . 1 . . . . Feedback Blocked . | . . . . . . . . . . . . . . . . . Robot Schematics Acquired . | . . . . . . . . . . . . . . . . . Robots Built . | . . . . . . . . . . . . . . . . . Authchips . | . . . . . . . . . . . . . . . . . Time . | . . . . . . . . . . . . . . . . . Total Robot Build Rating . | . . . . . . . . . . . . . . . . . Part Schematics Acquired 1 | . . . . . 1 . . . . . . . . . . . Parts Built . | . . . . . . . . . . . . . . . . . Authchips . | . . . . . . . . . . . . . . . . . Time . | . . . . . . . . . . . . . . . . . Total Part Build Rating . | . . . . . . . . . . . . . . . . . Part Studies Acquired . | . . . . . . . . . . . . . . . . . Parts Repaired . | . . . . . . . . . . . . . . . . . Time . | . . . . . . . . . . . . . . . . . Parts Recycled . | . . . . . . . . . . . . . . . . . Recycled Matter . | . . . . . . . . . . . . . . . . . Retrieved Matter . | . . . . . . . . . . . . . . . . . Retrieved Components 3 | . . . . . . . . . . . . 3 . . . . Parts Scanalyzed 1 | . . . . . 1 . . . . . . . . . . . Part Schematics Acquired 1 | . . . . . 1 . . . . . . . . . . . Parts Damaged . | . . . . . . . . . . . . . . . . . Bothacking | -11 -10 -10 -10 -9 -8 -8 -8 -7 -7 -7 -7 -6 -6 -6 -6 -6 ------------ Run | Yrd Mat Min Exi Min Mat Gar Mat Fac Gar Fac DSF Fac Ext Cet Arc Hub Used RIF Installer . | . . . . . . . . . . . . . . . . . Robots Hacked 7 | . . . 4 1 . . . 1 . . . 1 . . . . Non-combat 5 | . . . 3 . . . . 1 . . . 1 . . . . Combat 2 | . . . 1 1 . . . . . . . . . . . . Robot Hacks Applied 7 | . . . 4 1 . . . 1 . . . 1 . . . . parse_system 5 | . . . 4 1 . . . . . . . . . . . . find_chute 2 | . . . . . . . . 1 . . . 1 . . . . Relay Couplers Released 41 | . . . . . . 19 1 . 15 . . 3 . . . 3 Machine Destruction 38 | . . . . . . 19 1 . 15 . . . . . . 3 Programmers 3 | . . . . . . . . . . . . 3 . . . . Fabnet Peak Effective % . | . . . . . . . . . . . . . . . . . Robots Rewired 21 | . . . . . . . . . . . . . 21 . . . Allies Hacked . | . . . . . . . . . . . . . . . . . Hacks Repelled . | . . . . . . . . . . . . . . . . . Allies | -11 -10 -10 -10 -9 -8 -8 -8 -7 -7 -7 -7 -6 -6 -6 -6 -6 -------- Run | Yrd Mat Min Exi Min Mat Gar Mat Fac Gar Fac DSF Fac Ext Cet Arc Hub Total Allies 33 | . . 2 . . . 2 . . . . . . 24 5 . . Largest Group 9 | . . 2 . . . 2 . . . . . . 9 8 8 7 Highest-Rated Group 690 | . . 42 . . . 40 . . . . . . 339 690 676 524 Highest-Rated Ally 159 | . . 31 . . . 20 . . . . . . 159 159 152 96 Initial Warlord ECA Mod 27 | . . . . . . . 11 10 10 18 18 27 27 27 27 27 Total Orders 5 | . . . . . . . . . . . . . . 3 . 2 STAY 2 | . . . . . . . . . . . . . . 1 . 1 FOLLOW 3 | . . . . . . . . . . . . . . 2 . 1 Ally Attacks 295 | . . 15 . . . 3 . . . . . . 158 98 . 21 Total Damage 7020 | . . 166 . . . 86 . . . . . . 3050 2676 . 1042 Kills 38 | . . 2 . . . . . . . . . . 17 13 . 6 Allies Corrupted 4 | . . . . . . . . . . . . . . . . 4 Allies Melted 1 | . . . . . . . . . . . . . 1 . . . Intel | -11 -10 -10 -10 -9 -8 -8 -8 -7 -7 -7 -7 -6 -6 -6 -6 -6 ------- Run | Yrd Mat Min Exi Min Mat Gar Mat Fac Gar Fac DSF Fac Ext Cet Arc Hub Active Infowar (turns) 5576 | . . . . . 473 . . . . . . 1267 2412 926 67 431 Terrain 473 | . . . . . 473 . . . . . . . . . . . Structural 892 | . . . . . . . . . . . . 660 31 . . 201 T.N.C. 5103 | . . . . . . . . . . . . 1267 2412 926 67 431 Robot Analysis Total . | . . . . . . . . . . . . . . . . . Derelict Logs Recovered 3 | . . 2 . 1 . . . . . . . . . . . . Drone Launches . | . . . . . . . . . . . . . . . . . Drone Recoveries . | . . . . . . . . . . . . . . . . . Exploration | -11 -10 -10 -10 -9 -8 -8 -8 -7 -7 -7 -7 -6 -6 -6 -6 -6 ------------- Run | Yrd Mat Min Exi Min Mat Gar Mat Fac Gar Fac DSF Fac Ext Cet Arc Hub Turns Passed 18051 | 167 932 320 637 267 1714 2243 2696 1169 2106 13 509 1442 2412 926 67 431 Spaces Moved 8321 | 84 509 133 392 131 863 1063 1086 461 838 9 205 905 950 445 41 206 Core 6 | 6 . . . . . . . . . . . . . . . . Treads 6499 | 78 509 133 392 131 142 1063 1086 461 838 9 15 . 950 445 41 206 Legs 721 | . . . . . 721 . . . . . . . . . . . Wheels 1095 | . . . . . . . . . . . 190 905 . . . . Hover . | . . . . . . . . . . . . . . . . . Flight . | . . . . . . . . . . . . . . . . . Fastest Speed 50 | 50 160 160 160 160 120 170 161 161 160 160 115 115 160 160 160 160 Average Speed 165 | 152 160 160 160 160 128 170 163 217 196 160 152 118 199 160 160 164 Slowest Speed 330 | 160 160 160 160 160 330 170 250 243 247 160 160 130 240 240 160 240 Overloaded Moves . | . . . . . . . . . . . . . . . . . Propulsion Burnouts . | . . . . . . . . . . . . . . . . . Robots Hopped . | . . . . . . . . . . . . . . . . . Potential Cave-ins . | . . . . . . . . . . . . . . . . . Cave-ins Triggered . | . . . . . . . . . . . . . . . . . Exploration Rate (%) 57 | 6 83 22 80 21 63 93 95 14 87 . 86 19 84 73 54 34 Regions Visited 16 Branch Regions 7 Pre-discovered Areas 4 | . . 2 1 1 . . . . . . . . . . . . Known Exits Taken 3 | . . . . . 1 . . 1 . 1 . . . . . . Unknown Exits Taken 10 | 1 1 1 1 1 . . 1 . . . . 1 1 1 1 . Scrap Searched . | . . . . . . . . . . . . . . . . . Spaces Dug 57 | . . . . . 2 8 9 4 4 . 1 23 1 . . 5 Terrain Destroyed 634 | . 3 . . . 21 19 71 4 20 . 1 23 1 . . 471 Melee 55 | . . . . . . 8 9 4 4 . 1 23 1 . . 5 Projectile 21 | . . . . . 21 . . . . . . . . . . . AOE 558 | . 3 . . . . 11 62 . 16 . . . . . . 466 Terrain Rammed . | . . . . . . . . . . . . . . . . . Walls Destroyed . | . . . . . . . . . . . . . . . . . Machines Disabled . | . . . . . . . . . . . . . . . . . Actions | -11 -10 -10 -10 -9 -8 -8 -8 -7 -7 -7 -7 -6 -6 -6 -6 -6 --------- Run | Yrd Mat Min Exi Min Mat Gar Mat Fac Gar Fac DSF Fac Ext Cet Arc Hub Total 11498 | 102 571 192 400 168 1329 1327 1823 579 1132 8 363 1157 1389 647 43 268 Wait 1675 | . 25 20 . 14 286 117 514 48 99 . 108 122 136 145 3 38 Move 8306 | 83 508 132 391 130 863 1062 1085 460 837 8 204 904 949 444 40 206 Hop . | . . . . . . . . . . . . . . . . . Pick Up 185 | 4 6 . 2 1 36 9 24 14 25 . 4 17 28 14 . 1 Fast Attach 84 | 6 1 1 1 1 19 4 9 2 7 . 3 14 10 6 . . Attach 53 | . . 3 1 1 2 1 4 6 9 . 1 9 10 4 . 2 Detach 9 | . . . . 1 . . 2 1 2 . 1 . 1 1 . . Swap 90 | . 1 . . . 10 10 27 11 8 . 3 3 12 1 . 4 Drop 223 | . 2 . 1 . 43 17 34 12 28 . 9 21 31 23 . 2 Fire 296 | 9 28 36 . 19 64 61 23 . 44 . 4 . . 1 . 7 Melee 391 | . . . 4 1 5 46 100 25 66 . 18 67 43 8 . 8 Ram . | . . . . . . . . . . . . . . . . . Kick . | . . . . . . . . . . . . . . . . . Crush 2 | . . . . . 1 . 1 . . . . . . . . . Escape Stasis 27 | . . . . . . . . . 7 . 8 . 12 . . . Rewire 157 | . . . . . . . . . . . . . 157 . . . Trap . | . . . . . . . . . . . . . . . . . Miscellaneous . | . . . . . . . . . . . . . . . . . Route ------- -11/Scrapyard -10/Materials (discovered 5 exits: [*Mat x2] / [*Min x2] / [*Sub]) -10/Mines (discovered 2 exits: *Exi / [*Sub]) -10/Exiles -9/Mines -8/Materials (discovered 2 exits: *Fac / Gar) -8/Garrison (discovered 3 exits: *Mat x3) -8/Materials (discovered 3 exits: *Fac x3) -7/Factory -7/Garrison (discovered 3 exits: *Fac x3) -7/Factory -7/DSF -6/Factory -6/Extension (discovered 2 exits: [*Fac] / *Cet) -6/Cetus (discovered 2 exits: [*Fac] / [*Arc]) -6/Archives -6/Hub_04(d) History --------- Turn | Location | Event 4 | -11/Scrapyard | Discovered new exit (range 15) 168 | -11/Scrapyard | Entered Materials 300 | -10/Materials | Build established: Mutant 339 | -10/Materials | Discovered new exit (range 7) 412 | -10/Materials | Discovered new exit (range 13) 523 | -10/Materials | Discovered new exit (range 6) 764 | -10/Materials | Discovered new exit (range 13) 851 | -10/Materials | Discovered new exit (range 9) 1100 | -10/Materials | Entered Mines 1124 | -10/Mines | Met a Derelict bent on vengeance 1166 | -10/Mines | Learned location of Zion (-7) 1181 | -10/Mines | Assembled infested the area 1186 | -10/Mines | Assisted by a Guerilla fighting off Assembled 1266 | -10/Mines | Core integrity fell below 50% 1292 | -10/Mines | Lost 3 parts (1n2w) 1323 | -10/Mines | Discovered new exit (range 6) 1394 | -10/Mines | Deemed a non-threat by the Exiles lab entrance 1394 | -10/Mines | Discovered new exit (range 5) 1420 | -10/Mines | Entered Exiles 1462 | -10/Exiles | Met 8R-AWN 1491 | -10/Exiles | Met EX-HEX 1592 | -10/Exiles | Met EX-BIN 1613 | -10/Exiles | Aligned with FarCom system 1615 | -10/Exiles | Given EX-Vault access code 1652 | -10/Exiles | Opened EX-Vault 1663 | -10/Exiles | Found Modified TNC 1693 | -10/Exiles | Warned to stay clear of 0b10 Research branches 1739 | -10/Exiles | Met EX-DEC 1801 | -10/Exiles | Visited The Gauntlet 2043 | -10/Exiles | Discovered new exit (range 11) 2057 | -10/Exiles | Left Exiles lab with Modified TNC 2057 | -10/Exiles | Entered Mines 2303 | -9/Mines | Discovered new exit (range 13) 2324 | -9/Mines | Entered Materials 2324 | -8/Materials | Evolved 4 slots: Propulsion x2, Utility x1, Weapon x1 2637 | -8/Materials | Build established: Tank 3188 | -8/Materials | Build established: Skirmisher 3558 | -8/Materials | Discovered new exit (range 5) 4038 | -8/Materials | Identified exit to Garrison 4038 | -8/Materials | Entered Garrison 4097 | -8/Garrison | Build established: Tank 4112 | -8/Garrison | Destroyed 9 combat bots 4132 | -8/Garrison | Triggered checkpoint 4177 | -8/Garrison | Garrison Relay disabled 4222 | -8/Garrison | Rescued a captive Derelict 4223 | -8/Garrison | Rescued a captive Derelict 4476 | -8/Garrison | Triggered checkpoint 4629 | -8/Garrison | Triggered checkpoint 4644 | -8/Garrison | Triggered checkpoint 4778 | -8/Garrison | Triggered checkpoint 4882 | -8/Garrison | Triggered checkpoint 4889 | -8/Garrison | Garrison Relay disabled 4936 | -8/Garrison | Discovered new exit (range 12) 5382 | -8/Garrison | Discovered new exit (range 13) 5435 | -8/Garrison | Build established: Mutant 5454 | -8/Garrison | Garrison Relay disabled 5562 | -8/Garrison | Triggered checkpoint 6003 | -8/Garrison | Discovered new exit (range 10) 6134 | -8/Garrison | Triggered checkpoint 6202 | -8/Garrison | Garrison Relay disabled 6281 | -8/Garrison | Entered Materials 6681 | -8/Materials | First assault squad dispatched 6793 | -8/Materials | Discovered new exit (range 16) 6865 | -8/Materials | System corruption reached 10% 6892 | -8/Materials | Destroyed 10 combat bots 7147 | -8/Materials | Build established: Gladiator 7623 | -8/Materials | Discovered new exit (range 16) 7983 | -8/Materials | Core integrity fell below 50% 8250 | -8/Materials | Discovered new exit (range 4) 8446 | -8/Materials | Sterilization system engaged 8446 | -8/Materials | Non-combat units ordered to evacuate 8546 | -8/Materials | Combat units ordered to evacuate 8746 | -8/Materials | Ambient heat levels rising (+10) 8870 | -8/Materials | Build established: Mutant 8896 | -8/Materials | Ambient heat levels rising (+10) 8977 | -8/Materials | Entered Factory 8977 | -7/Factory | Evolved 2 slots: Weapon x2 9084 | -7/Factory | Lost 3 parts (2n1w) 9289 | -7/Factory | Build established: Gladiator 10143 | -7/Factory | Identified exit to Garrison 10146 | -7/Factory | Entered Garrison 10167 | -7/Garrison | Triggered checkpoint 10501 | -7/Garrison | Garrison Relay disabled 10501 | -7/Garrison | Triggered checkpoint 10839 | -7/Garrison | Triggered checkpoint 10948 | -7/Garrison | Triggered checkpoint 11109 | -7/Garrison | Triggered checkpoint 11212 | -7/Garrison | Triggered checkpoint 11532 | -7/Garrison | Garrison Relay disabled 11626 | -7/Garrison | Discovered new exit (range 8) 11712 | -7/Garrison | Triggered checkpoint 11828 | -7/Garrison | Discovered new exit (range 14) 11894 | -7/Garrison | Triggered checkpoint 11909 | -7/Garrison | Garrison Relay disabled 12069 | -7/Garrison | Discovered new exit (range 10) 12086 | -7/Garrison | Discovered new exit (range 9) 12086 | -7/Garrison | Discovered new exit (range 72) 12086 | -7/Garrison | Discovered new exit (range 76) 12190 | -7/Garrison | Garrison Relay disabled 12252 | -7/Garrison | Entered Factory 12265 | -7/Factory | Identified exit to DSF 12265 | -7/Factory | Entered DSF 12360 | -7/DSF | Additional patrols routed to DSF 12598 | -7/DSF | Build established: Mutant 12669 | -7/DSF | Core integrity fell below 50% 12690 | -7/DSF | Sterilization system engaged 12710 | -7/DSF | Ambient heat levels rising (+10) 12725 | -7/DSF | Ambient heat levels rising (+10) 12740 | -7/DSF | Ambient heat levels rising (+10) 12741 | -7/DSF | Discovered new exit (range 14) 12755 | -7/DSF | Ambient heat levels rising (+10) 12770 | -7/DSF | Ambient heat levels rising (+10) 12774 | -7/DSF | Entered Factory 12774 | -6/Factory | Evolved 2 slots: Utility x2 12778 | -6/Factory | Lost 4 parts (1u3w) 13340 | -6/Factory | Build established: Hacker-Mutant 13839 | -6/Factory | Build established: Hacker-Assassin 14210 | -6/Factory | Discovered new exit (range 6) 14216 | -6/Factory | Entered Extension 14518 | -6/Extension | Build established: Scavenger-Gladiator 14583 | -6/Extension | Lost 3 allies 15082 | -6/Extension | P-60 Hacker assimilated allied Y8-OX3(g) 15189 | -6/Extension | Build established: Commander-Gladiator 15650 | -6/Extension | Spotted B-75 Beast 15662 | -6/Extension | Spotted B-75 Beast 15664 | -6/Extension | Allies destroyed B-75 Beast 15692 | -6/Extension | Allies destroyed B-75 Beast 15712 | -6/Extension | Lost 6 allies 15805 | -6/Extension | Rescued a captive Derelict 15823 | -6/Extension | Core integrity fell below 50% 15851 | -6/Extension | Lost 3 parts (1p1n1w) 15930 | -6/Extension | Lost 3 parts (2u1w) 16120 | -6/Extension | Build established: Scavenger-Gladiator 16132 | -6/Extension | Rescued a captive Derelict 16270 | -6/Extension | Lost 4 allies 16409 | -6/Extension | Rescued A7 16549 | -6/Extension | Discovered new exit (range 10) 16551 | -6/Extension | Discovered new exit (range 6) 16628 | -6/Extension | Entered Cetus 16628 | -6/Cetus | Accompanied by 7 allies (A7) 16633 | -6/Cetus | Acquired a Cetus Manufacturing Module code from A7 16662 | -6/Cetus | Spotted Cetus Guard 16663 | -6/Cetus | Spotted Cetus Guard 16664 | -6/Cetus | Spotted Cetus Guard 16666 | -6/Cetus | Spotted Cetus Guard 16696 | -6/Cetus | Destroyed Cetus Guard 16713 | -6/Cetus | Lost 4 allies 16983 | -6/Cetus | Started Cetus Manufacturing Module 17006 | -6/Cetus | Discovered new exit (range 16) 17008 | -6/Cetus | Manufactured an Enhanced Grunt 17033 | -6/Cetus | Manufactured an Enhanced Grunt 17058 | -6/Cetus | Manufactured an Enhanced Grunt 17083 | -6/Cetus | Manufactured an Enhanced Grunt 17108 | -6/Cetus | Manufactured an Enhanced Grunt 17141 | -6/Cetus | Spotted Cetus Guard 17142 | -6/Cetus | Spotted Cetus Guard 17143 | -6/Cetus | Spotted Cetus Guard 17145 | -6/Cetus | Spotted Cetus Guard 17151 | -6/Cetus | Discovered new exit (range 16) 17153 | -6/Cetus | Allies destroyed Cetus Guard 17158 | -6/Cetus | Allies destroyed Cetus Guard 17169 | -6/Cetus | Destroyed Cetus Guard 17171 | -6/Cetus | Allies destroyed Cetus Guard 17173 | -6/Cetus | Met Revision 17 17224 | -6/Cetus | System corruption reached 10% 17296 | -6/Cetus | Escorted A7 to Cetus Mainframe 17378 | -6/Cetus | Security sweep announced 17419 | -6/Cetus | Build established: Commander-Gladiator 17554 | -6/Cetus | Entered Archives 17554 | -6/Archives | Accompanied by 8 allies (A7) 17559 | -6/Archives | Received a hacking code to weaken MAIN.C 17578 | -6/Archives | Met Zhirov 17584 | -6/Archives | Reinforcements dispatched to Archives 17596 | -6/Archives | Discovered new exit (range 13) 17621 | -6/Archives | Entered Hub_04(d) 17621 | -6/Hub_04(d) | Accompanied by 7 allies 17690 | -6/Hub_04(d) | Identified exit to Garrison 17824 | -6/Hub_04(d) | Found Prototype Launcher 17886 | -6/Hub_04(d) | Garrison activated, responded to threat 17895 | -6/Hub_04(d) | Identified Rocket Array 17897 | -6/Hub_04(d) | Network Hub disabled 17926 | -6/Hub_04(d) | Network Hub disabled 17958 | -6/Hub_04(d) | Lost 4 allies 17971 | -6/Hub_04(d) | First assault squad dispatched 17977 | -6/Hub_04(d) | Network Hub disabled 17982 | -6/Hub_04(d) | Spotted Lightning 17982 | -6/Hub_04(d) | Spotted Lightning 17982 | -6/Hub_04(d) | Spotted Lightning 17984 | -6/Hub_04(d) | Spotted Lightning 17988 | -6/Hub_04(d) | Spotted Lightning 17994 | -6/Hub_04(d) | Spotted Lightning 17996 | -6/Hub_04(d) | Spotted Lightning 17998 | -6/Hub_04(d) | Spotted Lightning 18017 | -6/Hub_04(d) | Core integrity fell below 20% 18024 | -6/Hub_04(d) | Spotted Lightning 18041 | -6/Hub_04(d) | System corruption reached 30% 18052 | -6/Hub_04(d) | Destroyed by Lightning with EMDS Last Messages --------------- 18015_ U-05 Engineer lays Concrete. 18016_ Penetrated by EMDS Slug. 18017_ The unstable cave ceiling collapses. 18018_ Shock Maul destroyed. 18018_ EMDS Slug penetrates Wall. 18019_ System corrupted: IFF burst signal emitted. 18021_ Penetrated by EMDS Slug. 18022_ EMDS Slug penetrates Wall. 18032_ Penetrated by EMDS Slug. 18034_ Centrium Heavy Treads destroyed. 18035_ Penetrated by EMDS Slug. 18035_ Quantum Reactor destroyed. 18036_ Penetrated by EMDS Slug. 18043_ System corrupted: Energy discharge (-20). 18045_ EMDS Slug penetrates Control Node. 18050_ EMDS Slug penetrates G-50 Soldier. 18051_ Penetrated by EMDS Slug. 18051_ Imp. Heavy Treads destroyed. 18052_ Penetrated by EMDS Slug. Map ----- +----------------------------------------------------+ | ??????????## " ! | | ??????????## % | | ??????????## = | | ??????????## = | | ????????????? " | | ???????????? !" " | | ???????????# " # | | ??????????## "## ! | | ??????????#####"""""""### %! | | ??????????##### #### = | | ???????????????? ????# | | ????????????????###?????# | | ????????????????????????#######/ | | ????????????????????????# | | ????????????????????????# """" | | ????????????????????????# """" | | ????????????????????????# """" | | ????????????????????????# """" | | ????????????????????????# / | | ????????????????????????# " "" | | ????????????????????????# """ | | ????????????????????????# """ | | ????????????????????????# """ | | ??????####??????????????# | | ??????# #??????????????# | | #######@###?????????????# | | # ! #??????????#### / | | # " #??????????# # | | #!![ #?????????## T | | #!![ gg ######????# " | | #!![ hh##"""####?# | | # i ihh## #?# ##+# | | # h h## !!! #?# | | # h## !!! #?# | | # ## !!! #?# | | # ## ### | | # h;" ! # # ### | | # ;"""#/# # #?? | | # "hgY ! #?? | | # " Y %! #?? | | # " "# # # | | # ] " ## | | #####"""""" ###? | | ???# """"""" ? | | ???# " | | ???# " # # ### | | ???# " ] | | ???# " "# | | ??? " "" | | ???# " "" ?? | +----------------------------------------------------+ Best States ------------- Heat Dissipation 51 Energy Generation 25 Energy Capacity 350 Matter Stores 300 Matter Capacity 300 Sight Range 16 Terrain Scan Range 16 Terrain Scan Density 10 Armor Coverage 750 Resistance: KI 30 Melee Speed Boost 20 Evasion (%) 55 Targeting Accuracy 8 Melee Accuracy 6 Recoil Reduction 4 Offensive Hacking 10 Defensive Hacking 10 Item Schematics ----------------- Hcp. Storage Unit | -8/Materials | Scanalyzed Robot Schematics ------------------ None Fabricated ------------ Nothing Repaired ---------- Nothing Studied --------- None Alien Tech Used ----------------- None Achievements -------------- None Challenges ------------ None Game ------ Seed TitaniumExoskeletonAmplifier Manual? 0 Play Time 01:57:49 Cumulative 439.4 hours Start 2026.07.11 @ 18:26:23 End 2026.07.11 @ 20:56:24 Sessions 1 Manual Loads 0 Difficulty Rogue Special Mode None Game No. 402 Rogue 402 Adventurer 0 Explorer 0 Win Type - Total 11 Types 7/0/2/1/0/0/0/0/0/1 Lore% 61 Gallery% 68 Achievement% 64 Wizard Run 0 Options --------- Layout 1 ASCII 0 Keyboard 0 Movement Mouse Keybinds 0 Fullscreen 2 Font 24/Cog Map View 50x35 Zoom Use 15% Tactical HUD 1 Map Filters NONE Filters NONE Steam 1 RUN: f2c5768c-b1d9-45b8-97bf-ccd049e03dcb